bitfinex-derivatives/quotes_BTCF0:USTF0_20241110
["timestamp","ask_amount","ask_price","bid_price","bid_amount"]
[1731280566903,0.00016119,80532.0,80531.0,0.062047]
[1731280567203,0.00016119,80532.0,80531.0,0.2486376]
[1731280569094,0.00016119,80532.0,80531.0,0.29827624]
[1731280569401,0.3608,80547.0,80546.0,0.062035]
[1731280569796,0.36192001,80561.0,80559.0,0.062025]
[1731280569797,0.3608,80561.0,80559.0,0.062025]
[1731280570093,0.03039068,80560.0,80559.0,0.062025]
[1731280570294,0.19032,80566.0,80553.0,0.3608]
[1731280570493,0.19032,80566.0,80564.0,0.062021]
[1731280570691,9.479e-05,80565.0,80564.0,0.062021]
[1731280570901,0.1187737,80565.0,80554.0,0.0863]
[1731280571097,0.1187737,80565.0,80558.0,0.062026]
[1731280571098,0.1807947,80565.0,80558.0,0.062026]
[1731280571298,0.1807947,80565.0,80554.0,0.0863]
[1731280571299,0.1807947,80565.0,80555.0,0.18658797]
[1731280571495,0.1807947,80565.0,80560.0,0.062024]
[1731280571696,0.1807947,80565.0,80554.0,0.0863]
[1731280571892,0.1807947,80565.0,80561.0,0.062023]
[1731280572197,0.1807947,80565.0,80554.0,0.0863]
[1731280572198,0.1187737,80565.0,80554.0,0.0863]
[1731280572402,9.479e-05,80565.0,80563.0,0.062022]
[1731280573209,7.9e-07,80565.0,80564.0,0.30526701]
[1731280573703,7.9e-07,80565.0,80564.0,0.1865881]
[1731280574897,7.9e-07,80565.0,80564.0,0.30526701]
[1731280575402,7.9e-07,80565.0,80564.0,0.67762701]
[1731280575606,0.1186797,80565.0,80564.0,0.1865881]
[1731280576594,0.1807007,80565.0,80564.0,0.1865881]
[1731280576801,0.1186797,80565.0,80554.0,0.0863]
[1731280576992,0.1186797,80565.0,80563.0,0.062022]
[1731280576993,7.9e-07,80565.0,80563.0,0.062022]
[1731280577497,7.9e-07,80565.0,80564.0,0.18676227]
[1731280578493,7.9e-07,80565.0,80564.0,0.23540191]
[1731280579100,7.9e-07,80565.0,80564.0,0.68826191]
[1731280580302,7.9e-07,80565.0,80564.0,0.98839283]
[1731280584411,0.0058,80592.0,80591.0,0.062001]
[1731280584609,0.0058,80592.0,80586.0,0.11867891]
[1731280584610,0.1,80600.0,80598.0,0.061995]
[1731280584805,0.11867891,80599.0,80591.0,0.18738325]
[1731280585000,0.11867891,80599.0,80593.0,0.061999]
[1731280585001,0.3608,80595.0,80593.0,0.061999]
[1731280585402,0.00010642,80594.0,80593.0,0.061999]
[1731280585907,0.00010642,80594.0,80593.0,0.24806005]
[1731280586106,0.00010642,80594.0,80593.0,0.18606105]
[1731280586510,0.00010642,80594.0,80590.0,0.18627789]
[1731280586707,0.00010642,80594.0,80593.0,0.18627789]
[1731280587108,0.00010642,80594.0,80591.0,0.24827789]
[1731280587313,0.08850642,80594.0,80593.0,0.1855993]
[1731280587811,0.08850642,80594.0,80592.0,0.1855993]
[1731280588009,0.08850642,80594.0,80593.0,0.1855993]
[1731280588206,0.20718533,80594.0,80581.0,0.36144]
[1731280588512,0.20718533,80594.0,80582.0,0.18615647]
[1731280588513,0.3608,80590.0,80582.0,0.18615647]
[1731280589206,0.3608,80590.0,80584.0,0.062006]
[1731280589207,0.062005,80586.0,80584.0,0.062006]
[1731280589503,0.062005,80586.0,80573.0,0.3608]
[1731280589504,0.062003,80589.0,80587.0,0.062003]
[1731280589906,0.062003,80589.0,80588.0,0.18604577]
[1731280590912,0.062005,80585.0,80584.0,0.18500113]
[1731280591109,0.18068391,80585.0,80577.0,0.062011]
[1731280591303,0.18068391,80585.0,80573.0,0.00064]
[1731280591304,0.11867891,80579.0,80560.0,0.0841]
[1731280591512,0.3608,80572.0,80557.0,0.11867891]
[1731280591719,0.3608,80572.0,80571.0,0.18525075]
[1731280591911,0.3608,80572.0,80569.0,0.062017]
[1731280592305,0.3608,80572.0,80571.0,0.18525075]
[1731280592509,0.3608,80572.0,80570.0,0.24918372]
[1731280592716,0.3608,80572.0,80571.0,0.18716672]
[1731280593111,0.3608,80572.0,80570.0,0.062017]
[1731280593416,0.40982607,80572.0,80571.0,0.1865116]
[1731280596217,0.3608,80572.0,80571.0,0.1865116]
[1731280597712,0.19004,80583.0,80571.0,0.30519051]
[1731280597916,0.03038276,80582.0,80580.0,0.062009]
[1731280598219,0.062005,80586.0,80582.0,0.062008]
[1731280598417,0.03056725,80583.0,80582.0,0.062008]
[1731280600012,0.03056725,80583.0,80576.0,0.062012]
[1731280600210,0.062009,80581.0,80576.0,0.062012]
[1731280600410,0.062009,80581.0,80577.0,0.1852661]
[1731280600411,0.03056725,80580.0,80577.0,0.1852661]
[1731280600612,0.062009,80581.0,80577.0,0.1852661]
[1731280600613,0.03056725,80579.0,80577.0,0.1852661]
[1731280600916,0.062009,80581.0,80577.0,0.2472771]
[1731280601120,0.1492052,80580.0,80573.0,0.00064]
[1731280601422,0.1492052,80580.0,80564.0,0.36093092]
[1731280601423,0.06860574,80579.0,80577.0,0.062012]
[1731280601718,0.3608,80581.0,80577.0,0.062012]
[1731280601719,0.062009,80580.0,80577.0,0.062012]
[1731280601910,0.03038036,80579.0,80577.0,0.062012]
[1731280602106,0.062009,80580.0,80577.0,0.062012]
[1731280602312,0.03038187,80579.0,80577.0,0.062012]
[1731280602511,0.062013,80575.0,80571.0,0.062016]
[1731280602720,0.36192001,80581.0,80579.0,0.06201]
[1731280602920,0.03038087,80580.0,80579.0,0.06201]
[1731280603108,0.3608,80581.0,80580.0,0.18523371]
[1731280603311,0.04846666,80586.0,80579.0,0.18661242]
[1731280603512,0.3608,80588.0,80584.0,0.062006]
[1731280603719,0.03082328,80587.0,80585.0,0.062005]
[1731280603918,0.03082328,80586.0,80585.0,0.062005]
[1731280604115,0.03082328,80587.0,80585.0,0.062005]
[1731280604317,0.03082328,80586.0,80585.0,0.062005]
[1731280604616,0.03082328,80586.0,80585.0,0.24713267]
[1731280604822,0.03082328,80587.0,80585.0,0.24713267]
[1731280605015,0.03082328,80586.0,80585.0,0.24713267]
[1731280605220,0.00010642,80594.0,80593.0,0.061999]
[1731280605511,0.00010642,80594.0,80593.0,0.24870547]
[1731280605512,0.03129328,80594.0,80593.0,0.24870547]
[1731280605716,0.09329228,80594.0,80593.0,0.18670647]
[1731280605913,0.40353328,80594.0,80585.0,0.062005]
[1731280606114,0.422804,80588.0,80579.0,0.06201]
[1731280606317,0.422804,80588.0,80586.0,0.18670647]
[1731280606621,0.03083694,80587.0,80580.0,0.18577742]
[1731280606822,0.3608,80581.0,80577.0,0.062011]
[1731280607018,0.03083694,80580.0,80577.0,0.062011]
[1731280607216,0.03053621,80579.0,80578.0,0.18577742]
[1731280607415,0.03053621,80579.0,80577.0,0.062011]
[1731280607613,0.0885,80580.0,80577.0,0.062011]
[1731280607814,0.0885,80580.0,80571.0,0.062016]
[1731280608019,0.062012,80577.0,80566.0,0.04965601]
[1731280608214,0.062012,80577.0,80572.0,0.1853228]
[1731280608409,0.3608,80578.0,80567.0,0.18684892]
[1731280608627,0.0885,80580.0,80576.0,0.062012]
[1731280608815,0.03038112,80579.0,80576.0,0.062012]
[1731280609011,0.0885,80580.0,80576.0,0.062012]
[1731280610921,0.13807761,80580.0,80576.0,0.062012]
[1731280611130,0.062011,80578.0,80576.0,0.062012]
[1731280611623,0.03038087,80577.0,80576.0,0.062012]
[1731280612426,0.03038087,80577.0,80576.0,0.36665151]
[1731280612629,0.0801,80599.0,80593.0,0.061999]
[1731280612825,0.03818034,80594.0,80593.0,0.061999]
[1731280613221,0.03818034,80594.0,80593.0,0.2479596]
[1731280617629,0.00010642,80594.0,80593.0,0.2479596]
[1731280618416,0.061999,80593.0,80584.0,0.36144]
[1731280618625,0.03807265,80592.0,80590.0,0.062001]
[1731280618830,0.03807265,80591.0,80590.0,0.062001]
[1731280619327,0.03807279,80591.0,80590.0,0.24812462]
[1731280620044,0.46087379,80591.0,80590.0,0.062002]
[1731280620327,0.5175517,80591.0,80583.0,0.062006]
[1731280620525,0.18972,80593.0,80583.0,0.062006]
[1731280620526,0.47947891,80584.0,80583.0,0.062006]
[1731280620720,0.50998757,80584.0,80583.0,0.062006]
[1731280620926,0.50998757,80584.0,80583.0,0.1860538]
[1731280621130,0.47729736,80584.0,80583.0,0.1860538]
[1731280621319,0.47729736,80584.0,80583.0,0.062007]
[1731280621729,0.42938594,80584.0,80583.0,0.062007]
[1731280621931,0.061996,80598.0,80592.0,0.062]
[1731280622234,0.03065278,80593.0,80584.0,0.0795]
[1731280622436,0.04790162,80595.0,80591.0,0.062]
[1731280622437,0.03065278,80592.0,80591.0,0.062]
[1731280622736,0.3608,80592.0,80591.0,0.24725958]
[1731280623031,0.062002,80590.0,80578.0,0.41034752]
[1731280623233,0.03065278,80589.0,80586.0,0.062005]
[1731280623628,0.09265578,80589.0,80587.0,0.18694134]
[1731280623821,0.3608,80592.0,80586.0,0.062005]
[1731280623822,0.03065278,80588.0,80586.0,0.062005]
[1731280624030,0.3608,80592.0,80591.0,0.062001]
[1731280624229,0.39163551,80592.0,80591.0,0.062001]
[1731280624532,0.4297085,80592.0,80587.0,0.06456509]
[1731280624735,0.0689085,80591.0,80587.0,0.06456509]
[1731280624924,0.0689085,80591.0,80589.0,0.062002]
[1731280625326,0.25182542,80594.0,80593.0,0.061999]
[1731280625327,0.00010642,80594.0,80593.0,0.061999]
[1731280625523,7e-08,80599.0,80593.0,0.3608]
[1731280625831,0.0058,80623.0,80622.0,0.061977]
[1731280626039,0.08254075,80626.0,80612.0,0.3608]
[1731280626236,0.03806366,80625.0,80624.0,0.18065391]
[1731280626435,0.3608,80634.0,80633.0,0.061969]
[1731280626739,0.44747584,80634.0,80633.0,0.18677977]
[1731280627127,0.50944384,80634.0,80633.0,0.18677977]
[1731280627333,0.44747584,80634.0,80613.0,0.0865]
[1731280627529,0.11867891,80631.0,80613.0,0.0865]
[1731280627831,0.11867891,80631.0,80623.0,0.18618038]
[1731280628027,0.18972,80630.0,80626.0,0.061974]
[1731280628237,0.2277776,80630.0,80628.0,0.00015409]
[1731280628533,0.0380576,80629.0,80628.0,0.00015409]
[1731280628925,0.0380576,80629.0,80628.0,0.18732277]
[1731280629440,0.18972,80630.0,80628.0,0.18732277]
[1731280630024,0.18972,80630.0,80628.0,0.24929477]
[1731280631641,0.0380565,80629.0,80628.0,0.24929477]
[1731280631835,0.18972,80630.0,80628.0,0.18732277]
[1731280632135,0.061979,80619.0,80603.0,0.067791]
[1731280632434,0.11867891,80605.0,80604.0,0.18611717]
[1731280632937,0.11867891,80605.0,80603.0,0.061991]
[1731280633137,0.3608,80609.0,80606.0,0.061989]
[1731280633337,0.3608,80609.0,80607.0,0.061988]
[1731280633634,0.11867891,80611.0,80607.0,0.24830887]
[1731280633836,0.11867891,80611.0,80603.0,0.00010881]
[1731280634037,0.1892,80614.0,80608.0,0.18632087]
[1731280634341,0.23857899,80614.0,80604.0,0.18632087]
[1731280634528,0.3608,80610.0,80609.0,0.24926352]
[1731280634735,0.3608,80610.0,80609.0,0.18727652]
[1731280634930,0.06199,80605.0,80603.0,0.00010881]
[1731280635238,0.11867891,80604.0,80603.0,0.00010881]
[1731280635635,0.11867891,80604.0,80603.0,0.18576907]
[1731280636743,0.11867891,80604.0,80603.0,0.00010881]
[1731280637936,0.72304,80610.0,80609.0,0.061987]
[1731280638242,0.061988,80608.0,80603.0,0.06209981]
[1731280638645,0.061988,80608.0,80604.0,0.18495499]
[1731280638845,0.72300001,80610.0,80604.0,0.18495499]
[1731280638846,0.84167892,80610.0,80604.0,0.18495499]
[1731280639042,0.84027891,80610.0,80604.0,0.18495499]
[1731280639246,0.84027891,80610.0,80603.0,0.00010881]
[1731280639247,0.061991,80604.0,80603.0,0.00010881]
[1731280639945,0.84159891,80610.0,80603.0,0.00010881]
[1731280640141,0.061989,80606.0,80603.0,0.18582813]
[1731280640645,0.1892,80609.0,80607.0,0.061988]
[1731280640948,0.1892,80609.0,80608.0,0.18689564]
[1731280641448,0.00132,80610.0,80609.0,0.061987]
[1731280641644,0.061986,80610.0,80608.0,0.18689564]
[1731280641844,0.11867891,80610.0,80609.0,0.186376]
[1731280642143,0.11867891,80610.0,80605.0,0.06199]
[1731280642144,0.36986491,80610.0,80605.0,0.06199]
[1731280642343,0.30787891,80610.0,80603.0,0.00010881]
[1731280642552,0.06199,80605.0,80603.0,0.00010881]
[1731280642738,0.42279,80605.0,80604.0,0.18658405]
[1731280642934,0.06199,80605.0,80603.0,0.00010881]
[1731280643845,0.3608,80604.0,80603.0,0.00010881]
[1731280644239,0.3608,80604.0,80603.0,0.18534398]
[1731280645741,0.39167441,80604.0,80603.0,0.18534398]
[1731280646649,0.39167324,80604.0,80603.0,0.18534398]
[1731280647347,0.3608,80604.0,80603.0,0.00010881]
[1731280648340,0.1892,80610.0,80606.0,0.061983]
[1731280648540,0.1892,80610.0,80603.0,0.1870388]
[1731280648745,0.1892,80610.0,80608.0,0.061981]
[1731280648944,0.40884221,80612.0,80610.0,0.06198]
[1731280649151,0.06901775,80611.0,80610.0,0.18065891]
[1731280649351,0.03095019,80611.0,80610.0,0.18065891]
[1731280649653,0.03095019,80611.0,80610.0,0.36694267]
[1731280649853,0.03095019,80611.0,80610.0,0.24826376]
[1731280650344,0.18924,80619.0,80610.0,0.18628376]
[1731280650540,0.03162529,80618.0,80615.0,0.3608]
[1731280650746,0.3608,80628.0,80617.0,0.11867891]
[1731280650943,0.3608,80628.0,80615.0,0.3608]
[1731280650944,0.06980579,80627.0,80619.0,0.061973]
[1731280651144,0.3608,80628.0,80618.0,0.18645448]
[1731280651145,0.06980579,80626.0,80618.0,0.18645448]
[1731280651348,0.03174502,80625.0,80624.0,0.061969]
[1731280651650,0.03805715,80627.0,80625.0,0.18716386]
[1731280651844,0.03218428,80626.0,80625.0,0.18716386]
[1731280652047,0.03218428,80626.0,80624.0,0.24913286]
[1731280652240,0.03218428,80625.0,80624.0,0.061969]
[1731280652552,0.03228951,80627.0,80626.0,0.061968]
[1731280652749,0.0322986,80627.0,80626.0,0.061968]
[1731280653051,0.0322986,80627.0,80619.0,0.061973]
[1731280653052,0.061968,80625.0,80619.0,0.061973]
[1731280653255,0.0322986,80624.0,80619.0,0.061973]
[1731280653449,0.0322986,80623.0,80620.0,0.18644451]
[1731280653643,0.0322986,80622.0,80620.0,0.18644451]
[1731280653951,0.0322986,80621.0,80620.0,0.18644451]
[1731280655351,0.061972,80621.0,80620.0,0.18644451]
[1731280655746,0.061972,80621.0,80616.0,0.18632923]
[1731280655946,0.061972,80621.0,80620.0,0.18632923]
[1731280656454,0.061972,80621.0,80611.0,0.02482189]
[1731280656455,0.061968,80626.0,80622.0,0.061971]
[1731280656655,0.061968,80626.0,80623.0,0.06197]
[1731280656841,0.061968,80626.0,80623.0,0.2471548]
[1731280657054,0.061969,80625.0,80623.0,0.06197]
[1731280657349,0.061969,80625.0,80624.0,0.1851848]
[1731280657544,0.3608,80628.0,80625.0,0.061968]
[1731280658049,0.3608,80628.0,80626.0,0.18665108]
[1731280658251,0.422766,80628.0,80626.0,0.18665108]
[1731280658648,0.061969,80624.0,80620.0,0.061972]
[1731280658856,0.061969,80624.0,80615.0,0.3608]
[1731280659057,0.061969,80624.0,80621.0,0.18700487]
[1731280659257,0.061969,80624.0,80618.0,0.18700487]
[1731280659465,0.061969,80624.0,80622.0,0.18544621]
[1731280659848,0.061969,80624.0,80621.0,0.061971]
[1731280660154,0.061969,80624.0,80616.0,0.18544621]
[1731280660155,0.061969,80624.0,80623.0,0.18544621]
[1731280660351,0.061969,80624.0,80622.0,0.18544621]
[1731280660748,0.061969,80624.0,80618.0,0.24883005]
[1731280660749,0.061969,80624.0,80618.0,0.061974]
[1731280660952,0.061969,80624.0,80623.0,0.18685605]
[1731280661258,0.061969,80624.0,80621.0,0.18685605]
[1731280661259,0.061971,80623.0,80621.0,0.18685605]
[1731280661456,0.3608,80628.0,80615.0,0.3608]
[1731280661650,0.061974,80618.0,80616.0,0.1870205]
[1731280661957,0.061974,80618.0,80615.0,0.3608]
[1731280662161,0.3608,80628.0,80591.0,0.0058]
[1731280662162,0.3608,80616.0,80591.0,0.0058]
[1731280662458,0.3608,80616.0,80589.0,0.3608]
[1731280662459,0.061981,80609.0,80607.0,0.18577038]
[1731280662849,0.061982,80608.0,80604.0,0.061984]
[1731280663053,0.55084,80615.0,80608.0,0.18577038]
[1731280663255,0.061981,80609.0,80608.0,0.18577038]
[1731280663457,0.061981,80609.0,80599.0,0.061988]
[1731280663458,0.061984,80605.0,80604.0,0.18577038]
[1731280663653,0.45402193,80605.0,80597.0,0.00064]
[1731280663857,0.10942737,80604.0,80597.0,0.00064]
[1731280664256,0.31159801,80604.0,80597.0,0.00064]
[1731280664564,0.061989,80598.0,80597.0,0.00064]
[1731280664760,0.57239528,80598.0,80597.0,0.00064]
[1731280664953,0.061998,80586.0,80571.0,0.0058]
[1731280665155,0.061998,80586.0,80559.0,0.11867891]
[1731280665156,0.70627935,80586.0,80559.0,0.0058]
[1731280665354,0.062014,80566.0,80559.0,0.3608]
[1731280665557,0.062014,80566.0,80565.0,0.1858809]
[1731280665762,0.062014,80566.0,80565.0,9.434e-05]
[1731280666067,0.062014,80566.0,80565.0,0.1858809]
[1731280666068,0.06210149,80566.0,80565.0,0.1858809]
[1731280666663,0.06210149,80566.0,80565.0,9.434e-05]
[1731280666961,0.09248812,80566.0,80565.0,9.434e-05]
[1731280667468,0.46484812,80566.0,80565.0,9.434e-05]
[1731280667961,0.65356812,80566.0,80565.0,9.434e-05]
[1731280668365,0.67187741,80566.0,80565.0,9.434e-05]
[1731280671062,0.60986341,80566.0,80540.0,0.3608]
[1731280671256,0.60986341,80566.0,80531.0,0.14274]
[1731280671257,0.062035,80539.0,80531.0,0.14274]
[1731280671664,0.062035,80539.0,80537.0,0.18714592]
[1731280671967,0.3608,80538.0,80530.0,0.00064]
[1731280672265,0.062043,80529.0,80524.0,0.0001274]
[1731280672664,0.062043,80529.0,80525.0,0.18626812]
[1731280672861,0.0833,80544.0,80525.0,0.18626812]
[1731280672862,0.062037,80537.0,80525.0,0.18626812]
[1731280673067,0.062031,80544.0,80534.0,0.062038]
[1731280673369,0.062031,80544.0,80535.0,0.18626812]
[1731280673370,0.05004938,80544.0,80535.0,0.18626812]
[1731280673577,0.250829,80547.0,80535.0,0.24830512]
[1731280673764,0.250829,80547.0,80535.0,0.062037]
[1731280673968,0.04864251,80550.0,80540.0,0.062033]
[1731280674176,0.18884,80549.0,80536.0,0.18724544]
[1731280674367,0.18884,80549.0,80547.0,0.062028]
[1731280674769,0.18884,80549.0,80548.0,0.18696161]
[1731280675774,0.40872682,80554.0,80541.0,0.18653926]
[1731280675973,0.40872682,80554.0,80548.0,0.18653926]
[1731280676171,0.40872682,80554.0,80552.0,0.062024]
[1731280676172,0.3608,80554.0,80552.0,0.062024]
[1731280676375,0.00164,80562.0,80557.0,0.062021]
[1731280676577,0.062016,80563.0,80557.0,0.062021]
[1731280676873,0.062016,80563.0,80558.0,0.18710192]
[1731280677179,0.18892749,80566.0,80558.0,0.18710192]
[1731280677476,0.18892749,80566.0,80554.0,0.18607444]
[1731280677673,8.749e-05,80566.0,80554.0,0.18607444]
[1731280677878,8.749e-05,80566.0,80559.0,0.18607444]
[1731280678070,8.749e-05,80566.0,80555.0,0.18607444]
[1731280678467,8.749e-05,80566.0,80560.0,0.18607444]
[1731280678681,8.749e-05,80566.0,80558.0,0.06202]
[1731280678875,0.062015,80565.0,80561.0,0.18534555]
[1731280679272,0.062015,80565.0,80560.0,0.062018]
[1731280679476,0.062015,80565.0,80562.0,0.18534555]
[1731280679782,0.04852902,80566.0,80561.0,0.24861722]
[1731280680081,0.04852902,80566.0,80563.0,0.18659922]
[1731280680387,0.04852902,80566.0,80562.0,0.18659922]
[1731280680568,0.04852902,80566.0,80564.0,0.24936515]
[1731280680966,0.04852902,80566.0,80564.0,0.062015]
[1731280680967,8.749e-05,80566.0,80564.0,0.062015]
[1731280681168,8.749e-05,80566.0,80565.0,0.18735015]
[1731280684384,0.06210149,80566.0,80565.0,0.18735015]
[1731280684583,8.749e-05,80566.0,80562.0,0.00064]
[1731280684876,8.749e-05,80566.0,80563.0,0.18518074]
[1731280684877,0.062016,80564.0,80563.0,0.18518074]
[1731280685080,8.749e-05,80566.0,80563.0,0.24719674]
[1731280685283,0.06210149,80566.0,80557.0,0.062021]
[1731280685674,0.06210149,80566.0,80558.0,0.18515771]
[1731280685875,0.06210149,80566.0,80559.0,0.062019]
[1731280686282,8.749e-05,80566.0,80560.0,0.54595771]
[1731280686482,8.749e-05,80566.0,80564.0,0.062015]
[1731280686883,8.749e-05,80566.0,80565.0,0.18743149]
[1731280687588,0.062015,80565.0,80560.0,0.36152]
[1731280687880,0.062016,80564.0,80561.0,0.24897982]
[1731280688484,8.749e-05,80566.0,80563.0,0.062016]
[1731280691995,0.062015,80565.0,80563.0,0.062016]
[1731280694586,0.062016,80563.0,80560.0,0.36144]
[1731280694782,0.062016,80563.0,80560.0,0.3608]
[1731280694978,0.09240291,80562.0,80561.0,0.18503363]
[1731280695180,0.06847355,80562.0,80552.0,0.00064]
[1731280695487,0.06847355,80562.0,80538.0,0.0792]
[1731280695488,0.11839391,80553.0,80542.0,0.062032]
[1731280695685,0.062028,80548.0,80542.0,0.062032]
[1731280695885,0.062029,80547.0,80543.0,0.18699826]
[1731280696788,0.18844,80552.0,80547.0,0.062028]
[1731280696993,0.062026,80551.0,80547.0,0.062028]
[1731280697585,0.062026,80550.0,80547.0,0.062028]
[1731280698182,0.04984054,80552.0,80538.0,0.19759391]
[1731280698491,0.06202,80559.0,80552.0,0.062024]
[1731280698692,0.06202,80559.0,80546.0,0.36144]
[1731280698886,0.03038879,80558.0,80553.0,0.18501846]
[1731280699192,0.06202,80559.0,80557.0,0.062021]
[1731280699379,0.30687391,80564.0,80561.0,0.062017]
[1731280699380,0.22904487,80564.0,80561.0,0.062017]
[1731280699586,0.22904487,80564.0,80560.0,0.062018]
[1731280699587,0.11065096,80564.0,80560.0,0.062018]
[1731280699784,0.11065096,80564.0,80562.0,0.18722426]
[1731280699984,0.03038599,80563.0,80562.0,0.062017]
[1731280700184,0.062013,80567.0,80562.0,0.062017]
[1731280700385,0.09239977,80565.0,80562.0,0.062017]
[1731280700587,0.062015,80565.0,80562.0,0.062017]
[1731280700891,0.3608,80568.0,80554.0,0.3608]
[1731280700892,0.062016,80564.0,80558.0,0.06202]
[1731280701289,0.062016,80564.0,80559.0,0.18497666]
[1731280701588,0.3608,80568.0,80565.0,0.062015]
[1731280701589,0.05005804,80566.0,80565.0,0.062015]
[1731280701790,0.3608,80582.0,80577.0,0.062005]
[1731280701984,0.03038067,80581.0,80577.0,0.062005]
[1731280702186,0.03038067,80580.0,80579.0,0.062004]
[1731280702384,0.03037755,80580.0,80579.0,0.062004]
[1731280702595,0.40886406,80589.0,80588.0,0.061997]
[1731280702793,0.391312,80589.0,80588.0,0.06211042]
[1731280702985,0.391312,80589.0,80588.0,0.24822516]
[1731280703183,0.0058,80613.0,80588.0,0.55850816]
[1731280703389,0.03037377,80606.0,80605.0,0.061984]
[1731280703893,0.03037377,80606.0,80605.0,0.24786629]
[1731280704291,0.0001444,80606.0,80605.0,0.24786629]
[1731280706397,0.17770448,80606.0,80605.0,0.18588229]
[1731280706605,0.0001444,80606.0,80605.0,0.18588229]
[1731280706901,0.0001444,80606.0,80600.0,0.18512174]
[1731280707094,0.0001444,80606.0,80605.0,0.24710574]
[1731280707288,0.0001444,80606.0,80605.0,0.434184]
[1731280707490,0.0001444,80606.0,80605.0,0.61930574]
[1731280707890,0.0001444,80606.0,80605.0,0.24710574]
[1731280708502,0.0001444,80606.0,80605.0,0.18512174]
[1731280708895,0.0001444,80606.0,80601.0,0.061986]
[1731280709190,0.0001444,80606.0,80605.0,0.18488998]
[1731280709395,0.0001444,80606.0,80603.0,0.061985]
[1731280709596,0.0001444,80606.0,80603.0,0.24687498]
[1731280709802,0.0001444,80606.0,80605.0,0.18541547]
[1731280710000,0.0001444,80606.0,80603.0,0.061985]
[1731280710199,0.0001444,80606.0,80605.0,0.18541547]
[1731280710701,0.0001444,80606.0,80604.0,0.18721182]
[1731280710998,0.0001444,80606.0,80605.0,0.18721182]
[1731280711204,0.0001444,80606.0,80603.0,0.061985]
[1731280711504,0.0001444,80606.0,80605.0,0.18721182]
[1731280711905,0.0001444,80606.0,80603.0,0.061985]
[1731280712105,0.0001444,80606.0,80605.0,0.18713903]
[1731280712303,0.0001444,80606.0,80604.0,0.18713903]
[1731280712504,0.0001444,80606.0,80599.0,0.00068]
[1731280712505,0.0621284,80606.0,80599.0,0.00068]
[1731280712707,0.0621284,80606.0,80600.0,0.18688004]
[1731280712909,0.0621284,80606.0,80594.0,0.00064]
[1731280712910,0.17756008,80603.0,80594.0,0.00064]
[1731280713211,0.0001444,80606.0,80583.0,0.3608]
[1731280713212,0.061989,80598.0,80597.0,0.18688004]
[1731280713399,0.061996,80589.0,80583.0,0.00064]
[1731280713599,0.422796,80589.0,80573.0,0.422808]
[1731280713804,0.795076,80589.0,80573.0,0.3608]
[1731280714002,0.97263608,80589.0,80573.0,0.3608]
[1731280714211,0.60035608,80589.0,80573.0,0.3608]
[1731280714802,0.97263608,80589.0,80573.0,0.3608]
[1731280715602,0.97263608,80589.0,80564.0,0.0058]
[1731280715603,0.062014,80566.0,80564.0,0.0058]
[1731280715811,0.062019,80560.0,80555.0,0.3608]
[1731280716203,0.062019,80560.0,80557.0,0.18540336]
[1731280716407,0.062019,80560.0,80556.0,0.18540336]
[1731280716706,0.062019,80559.0,80558.0,0.18556213]
[1731280716905,0.062019,80559.0,80555.0,0.00084067]
[1731280717110,0.062019,80559.0,80555.0,0.00012067]
[1731280718396,0.53988008,80565.0,80555.0,0.00012067]
[1731280718397,0.06202,80558.0,80555.0,0.00012067]
[1731280719008,0.58804868,80565.0,80555.0,0.00012067]
[1731280719515,0.422822,80556.0,80555.0,0.00012067]
[1731280719706,0.60038208,80556.0,80555.0,0.00012067]
[1731280721510,0.422822,80556.0,80555.0,0.00012067]
[1731280723606,0.062017,80562.0,80555.0,0.00012067]
[1731280723807,0.062018,80561.0,80555.0,0.06214267]
[1731280724014,0.18788,80560.0,80555.0,0.06214267]
[1731280724204,0.06202,80558.0,80555.0,0.06214267]
[1731280725413,0.062021,80557.0,80555.0,0.00012067]
[1731280726107,0.18788,80556.0,80555.0,0.00012067]
[1731280726913,0.062021,80557.0,80555.0,0.00012067]
[1731280726914,0.062016,80563.0,80555.0,0.18521265]
[1731280727117,0.18788,80562.0,80560.0,0.062018]
[1731280727409,0.22707991,80564.0,80562.0,0.062017]
[1731280727410,0.04951983,80564.0,80562.0,0.062017]
[1731280727610,9.589e-05,80564.0,80562.0,0.062017]
[1731280727812,9.589e-05,80564.0,80563.0,0.18527443]
[1731280731003,9.589e-05,80564.0,80563.0,0.14027443]
[1731280731811,9.589e-05,80564.0,80563.0,0.51263443]
[1731280733009,9.589e-05,80564.0,80563.0,0.14027443]
[1731280734709,9.589e-05,80564.0,80563.0,0.51263443]
[1731280734910,0.18788,80583.0,80581.0,0.062002]
[1731280735115,0.18788,80583.0,80563.0,0.93095859]
[1731280735116,0.424319,80586.0,80571.0,0.3608]
[1731280735316,0.47162226,80586.0,80584.0,0.062]
[1731280736012,0.00011688,80585.0,80584.0,0.062]
[1731280736412,0.061994,80592.0,80584.0,0.062]
[1731280736413,0.061959,80638.0,80605.0,0.061984]
[1731280736607,0.3608,80635.0,80610.0,0.11832416]
[1731280736816,0.11832416,80633.0,80622.0,0.061971]
[1731280737013,0.3608,80627.0,80618.0,0.061973]
[1731280737322,0.18028716,80633.0,80623.0,0.18580021]
[1731280737520,0.18028716,80633.0,80620.0,0.06209185]
[1731280737521,0.00014934,80632.0,80620.0,0.06209185]
[1731280737714,0.00014934,80632.0,80624.0,0.18487932]
[1731280738021,0.00014934,80632.0,80620.0,0.06209185]
[1731280738412,0.00014934,80632.0,80622.0,0.24685032]
[1731280738613,0.00014934,80632.0,80622.0,0.061971]
[1731280738812,0.00014934,80632.0,80623.0,0.24922372]
[1731280739013,0.00014934,80632.0,80624.0,0.061969]
[1731280739514,0.00014934,80632.0,80620.0,0.00011985]
[1731280739515,0.00014934,80632.0,80625.0,0.18725372]
[1731280740021,0.00014934,80632.0,80630.0,0.061964]
[1731280740319,0.00014934,80632.0,80630.0,0.422764]
[1731280740526,0.00014934,80632.0,80631.0,0.18723024]
[1731280746121,0.00014934,80632.0,80607.0,0.3608]
[1731280746323,0.00014934,80632.0,80614.0,0.38625224]
[1731280746528,0.17744814,80632.0,80622.0,0.18618976]
[1731280746731,0.061969,80625.0,80621.0,0.18618976]
[1731280746922,0.061969,80625.0,80620.0,0.06209185]
[1731280747125,0.3608,80628.0,80623.0,0.18568657]
[1731280747327,0.061968,80626.0,80621.0,0.24765757]
[1731280747523,0.061968,80626.0,80624.0,0.18568657]
[1731280747925,0.061968,80626.0,80622.0,0.18706978]